Cogmind - Beta 15 @@@ ROGUE MODE // 2025.10.19 @ 21:14:54 Player: the Result: Destroyed by AI-LQD(R) with Subdweller Machine Gun Performance ------------- Evolutions (0) 0 Regions Visited (2) 400 Robots Destroyed (39) 195 Value Destroyed (779) 779 Prototype IDs (2) 40 Alien Tech Used (0) 0 Bonus (0) 0 TOTAL SCORE: 1414 Bonus ------- None Cogmind --------- Core Integrity 0/250 Matter 244/300 Energy 250/250 System Corruption 1% Temperature Cool (0) Movement Treading (250) Ox1 Location -10/Subcaves Parts ------- > --- POWER (1) -------- Ion Engine > --- PROPULSION (2) --- Light Treads Spiked Treads > --- UTILITY (2) ------ High-capacity Storage Unit Makeshift Light Armor Plating > --- WEAPON (2) ------- Subdweller Laser Subdweller Machine Gun > --- INVENTORY (20) --- Ion Engine Light Ion Engine Light Treads Light Treads Light Treads Wheel Improved Heat Sink High-capacity Storage Unit Makeshift Light Armor Plating Hacking Suite Power Bank Subdweller Laser Shotgun Shotgun Datajack Mining Laser Peak State ------------ > --- POWER ------------ Ion Engine > --- PROPULSION ------- Spiked Treads Spiked Treads > --- UTILITY ---------- High-capacity Storage Unit Makeshift Light Armor Plating > --- WEAPON ----------- Subdweller Laser Subdweller Machine Gun > --- INVENTORY -------- Ion Engine Light Treads Light Treads Light Treads Light Treads Wheel Improved Heat Sink High-capacity Storage Unit Makeshift Light Armor Plating Hacking Suite Power Bank Shotgun Shotgun Datajack Mining Laser [Rating: 17] Favorites ----------- Power Ion Engine Engine Ion Engine Propulsion Light Treads Treads Light Treads Utility High-capacity Storage Unit Device Seismic Detector Storage High-capacity Storage Unit Protection Makeshift Light Armor Plating Weapon Shotgun Energy Gun Subdweller Laser Ballistic Gun Shotgun Launcher Subdweller Shrapnel Launcher Special Weapon Mining Laser Build | -11 -10 -10 ------- Run | Yrd Mat Sub Slots Evolved . | . . . Power . | . . . Propulsion . | . . . Utility . | . . . Weapon . | . . . Parts Attached 29 | 8 6 15 Power 3 | 1 . 2 Engine 3 | 1 . 2 Core . | . . . Reactor . | . . . Propulsion 6 | 2 . 4 Treads 6 | 2 . 4 Leg . | . . . Wheel . | . . . Hover . | . . . Flight . | . . . Utility 7 | 3 2 2 Device 2 | 2 . . Storage 3 | 1 2 . Processor . | . . . Hackware . | . . . Protection 2 | . . 2 Artifact . | . . . Weapon 13 | 2 4 7 Energy Gun 4 | . . 4 Energy Cannon . | . . . Ballistic Gun 7 | 2 3 2 Ballistic Cannon . | . . . Launcher 1 | . . 1 Special Weapon 1 | . 1 . Impact Weapon . | . . . Slashing Weapon . | . . . Piercing Weapon . | . . . Special Melee Weapon . | . . . Unidentified Prototypes . | . . . Parts Lost 7 | . . 7 Power 2 | . . 2 Propulsion 1 | . . 1 Utility 1 | . . 1 Weapon 3 | . . 3 Highest Loss Streak 2 | . . 2 To Critical Strikes . | . . . Average Backups 15 | 1 12 18 Power 2 | . 1 2 Propulsion 3 | . 2 5 Utility 3 | . 1 4 Weapon 5 | . 5 5 Tool/Special . | . . . Unused Backups 17 | . 3 14 Power 2 | . . 2 Propulsion 7 | . 2 5 Utility 5 | . . 5 Weapon 2 | . 1 1 Tool/Special 1 | . . 1 Average Slot Usage (%) 99 | . 100 99 Engine 13 | . 14 13 Treads 27 | . 28 27 Device 9 | . 14 5 Storage 14 | . 14 14 Protection 4 | . . 8 Energy Gun 7 | . . 13 Ballistic Gun 19 | . 25 14 Special Weapon 1 | . 2 . Peak Build Rating 17 | 7 11 17 Average Rating 12 | 4 10 14 On Entrance 6 | . 7 11 Naked Turns . | . . . Heaviest Build 58 | 15 52 58 Greatest Support 40 | 40 40 40 Greatest Overweight (x) 1 | . 1 1 Average Overweight (x) . | . . 1 Largest Inventory Capacity 20 | 8 20 20 Average Capacity 17 | 5 14 20 Most Carried 20 | 6 20 20 Average Carried 15 | 1 12 18 Final Capacity 20 | 8 20 20 Final Carried 20 | 6 20 16 Class Distribution -------------------- 100% | Mutant Dominant Class ---------------- Mutant | -10/Materials Mutant | -10/Subcaves Resources | -11 -10 -10 ----------- Run | Yrd Mat Sub Matter Collected 1327 | 317 480 530 Remotely . | . . . Salvage Created 907 | 134 347 426 Parts 71 | 12 30 29 Haulers Intercepted 2 | . 2 . Recyclers Shooed 2 | . 2 . Parts Field Recycled . | . . . Retrieved Matter . | . . . Parts Self-Destructed 13 | . . 13 Prevented . | . . . Kills | -11 -10 -10 ------- Run | Yrd Mat Sub Combat Hostiles Destroyed 23 | . 7 16 Guns 21 | . 7 14 AOE 2 | . . 2 Classes Destroyed 10 | 2 7 1 Worker 2 | . 2 . Builder 1 | . 1 . Tunneler 4 | 4 . . Hauler 2 | . 2 . Recycler 2 | 1 1 . Operator 1 | . 1 . Turret 2 | . . 2 Watcher 2 | . 2 . Swarmer 10 | . 5 5 Subdweller 13 | . 2 11 Best Kill Streak 5 | 2 5 4 Combat Bots Only 4 | . 3 4 Max Kills in Single Turn 2 | 1 2 1 Gunslinging 1 | . 1 . Exploded 1 | . . 1 Melee . | . . . Uniques/NPCs Destroyed . | . . . Combat | -11 -10 -10 -------- Run | Yrd Mat Sub Hostile Shots Fired 162 | . 27 135 Missed 70 | . 12 58 Hits 92 | . 15 77 Projectile 92 | . 15 77 Damage Taken 1566 | . 177 1389 Core 272 | . 41 231 Absorbed by Shields . | . . . Core Remaining (%) 100 | 100 . . Volleys Fired 137 | 16 52 69 Largest 2 | 2 2 2 Hottest 120 | 40 100 120 Shots Fired 230 | 32 81 117 Gun 192 | 32 60 100 Cannon . | . . . Launcher 9 | . . 9 Special 29 | . 21 8 Kinetic 143 | 32 60 51 Thermal 87 | . 21 66 Explosive . | . . . Electromagnetic . | . . . Robot Hit Streak 14 | 4 9 14 Robot Miss Streak 6 | 1 6 4 Penetration Max . | . . . Secondary Targets 4 | . 1 3 Max Gunslinging Chain 1 | . 1 1 Shots Hit Robots 139 | 21 39 79 Core Hits 64 | 6 24 34 Critical Kills . | . . . Critical Parts Destroyed . | . . . Critical Strikes . | . . . Melee Attacks . | . . . Impact . | . . . Slashing . | . . . Piercing . | . . . Sneak Attacks . | . . . Combat Hostiles . | . . . Follow-up Attacks . | . . . Damage Inflicted 2756 | 257 595 1904 Guns 2243 | 257 535 1451 Cannons . | . . . Explosions 453 | . . 453 Melee . | . . . Ramming 36 | . 36 . Kinetic 1801 | 257 535 1009 Thermal 919 | . 24 895 Explosive . | . . . Electromagnetic . | . . . Impact . | . . . Slashing . | . . . Piercing . | . . . Highest Corruption 1 | . 1 1 Average Corruption 1 | . 1 1 Corruption Purged . | . . . Corruption Blocked . | . . . Effects 36 | . 12 24 Message Errors 9 | . 2 7 Matter Fused 11 | . 6 5 Heat Flow Errors 3 | . . 3 Energy Discharges 4 | . 1 3 Parts Fused 1 | . . 1 Data Loss (minor) 4 | . 2 2 Data Loss (major) 4 | . 1 3 Overload Shots . | . . . Overflow Damage 84 | . . 84 Projectiles . | . . . Explosions 84 | . . 84 Melee . | . . . Knockbacks . | . . . Impact . | . . . Kinetic . | . . . Secondary . | . . . Self-Inflicted Damage 59 | . . 59 Shots 1 | . . 1 Rammed 7 | . 7 . Targets Rammed 8 | . 8 . Kicked . | . . . Crushed 1 | . 1 . Highest Temperature 153 | . 120 153 Average Temperature 38 | . 28 51 Received Heat Transfer 264 | . 30 234 Siege Activations . | . . . Martial Activations . | . . . Shielding Activations . | . . . Robots Disrupted . | . . . Combat Hostiles . | . . . Robots Corrupted . | . . . Combat Hostiles . | . . . Parts Fried . | . . . Impact Corruptions . | . . . Robots Melted . | . . . Combat Hostiles . | . . . Parts Melted 2 | . 1 1 Heat Transferred 1150 | . 50 1100 Parts Sabotaged . | . . . Parts Stolen . | . . . Parts Stripped . | . . . Power Chain Reactions . | . . . Alert | -11 -10 -10 ------- Run | Yrd Mat Sub Maximum Alert Level . | . . . Low Security (%) 100 | 100 100 . Level 1 . | . . . Level 2 . | . . . Level 3 . | . . . Level 4 . | . . . Level 5 . | . . . High Security . | . . . Max Security . | . . . Peak Influence 79 | 10 79 . Initial . | . . . Average 6 | 1 6 . Influence Increases 541 | 25 211 305 Destroy 0b10 Robot/C 240 | . 100 140 Destroy 0b10 Robot/NC 70 | 25 45 . Destroy Leader 28 | . 28 . Successful Hack 22 | . 22 . Destroy Structure 16 | . 16 . Lose Combat Pursuer 165 | . . 165 Influence Decreases 541 | 25 211 305 Time Decay 481 | 25 211 245 Lost Part 60 | . . 60 Squads Dispatched 1 | . 1 . Investigation . | . . . Extermination . | . . . Reinforcement 1 | . 1 . Assault . | . . . Garrison . | . . . Intercept . | . . . Searches Triggered . | . . . Construction Impeded . | . . . Haulers Reinforced . | . . . Active Scanning Responses . | . . . Cargo Convoy Interrupts . | . . . Stealth | -11 -10 -10 --------- Run | Yrd Mat Sub Distress Signals . | . . . Communications Jammed . | . . . Distress Signals . | . . . Times Spotted 43 | . 18 25 Peak Tracking Total 6 | . 3 6 Tactical Retreats 6 | . 2 4 Traps | -11 -10 -10 ------- Run | Yrd Mat Sub Traps Triggered 2 | . 2 . Indirectly . | . . . Trap Hack Attempts . | . . . Triggered . | . . . Disarmed . | . . . Reprogrammed . | . . . Reused . | . . . Traps Extracted . | . . . Installed . | . . . Triggered . | . . . Machines | -11 -10 -10 ---------- Run | Yrd Mat Sub Machines Disabled 4 | . . 4 Max in Single Turn 2 | . . 2 Machines Repaired . | . . . Machines Dismantled . | . . . Machines Sabotaged . | . . . Overloaded Fab Kills . | . . . Hacking | -11 -10 -10 --------- Run | Yrd Mat Sub Machines Accessed 9 | . 8 1 Terminals 7 | . 7 . Fabricators . | . . . Repair Stations . | . . . Recycling Units 1 | . 1 . Scanalyzers . | . . . Garrison Access . | . . . Total Hacks 28 | . 23 5 Successful 15 | . 10 5 Failed 12 | . 12 . Catastrophic 2 | . 2 . Database Lockouts 1 | . 1 . Manual 20 | . 20 . Terminals 21 | . 21 . Fabricators . | . . . Repair Stations . | . . . Recycling Units 2 | . 2 . Scanalyzers . | . . . Garrison Access . | . . . Terminal Hacks 10 | . 5 5 Record 5 | . . 5 Robot Analysis 2 | . 2 . Prototype ID Bank 1 | . 1 . Terminal Index 1 | . 1 . Registered Components 1 | . 1 . Fabricator Hacks . | . . . Repair Station Hacks . | . . . Recycling Unit Hacks 1 | . 1 . Retrieve Components 1 | . 1 . Scanalyzer . | . . . Garrison Access Hacks . | . . . Unauthorized Hacks 4 | . 4 . Terminals 4 | . 4 . Botnet 3 | . 3 . Operators 1 | . 1 . Fabricators . | . . . Repair Stations . | . . . Recycling Units . | . . . Scanalyzers . | . . . Garrison Access . | . . . Data Cores Recovered . | . . . Used . | . . . Hacking Detections 7 | . 7 . Full Trace Events . | . . . Feedback Events . | . . . Feedback Blocked . | . . . Robot Schematics Acquired . | . . . Robots Built . | . . . Authchips . | . . . Time . | . . . Total Robot Build Rating . | . . . Part Schematics Acquired . | . . . Parts Built . | . . . Authchips . | . . . Time . | . . . Total Part Build Rating . | . . . Parts Repaired . | . . . Time . | . . . Parts Recycled . | . . . Recycled Matter . | . . . Retrieved Matter . | . . . Retrieved Components 2 | . 2 . Parts Scanalyzed . | . . . Part Schematics Acquired . | . . . Parts Damaged . | . . . Bothacking | -11 -10 -10 ------------ Run | Yrd Mat Sub Used RIF Installer . | . . . Robots Hacked . | . . . Non-combat . | . . . Combat . | . . . Robot Hacks Applied . | . . . Relay Couplers Released . | . . . Fabnet Peak Effective % . | . . . Robots Rewired . | . . . Allies Hacked . | . . . Hacks Repelled . | . . . Allies | -11 -10 -10 -------- Run | Yrd Mat Sub Total Allies . | . . . Largest Group . | . . . Highest-Rated Group . | . . . Highest-Rated Ally . | . . . Total Orders . | . . . Ally Attacks . | . . . Total Damage . | . . . Kills . | . . . Allies Corrupted . | . . . Allies Melted . | . . . Intel | -11 -10 -10 ------- Run | Yrd Mat Sub Active Infowar (turns) 3641 | 109 2250 1282 Seismic 3641 | 109 2250 1282 Robot Analysis Total 2 | . 2 . Derelict Logs Recovered . | . . . Drone Launches . | . . . Drone Recoveries . | . . . Exploration | -11 -10 -10 ------------- Run | Yrd Mat Sub Turns Passed 5646 | 202 2250 3194 Spaces Moved 2191 | 86 1016 1089 Core 4 | 4 . . Treads 2187 | 82 1016 1089 Legs . | . . . Wheels . | . . . Hover . | . . . Flight . | . . . Fastest Speed 50 | 50 160 240 Average Speed 216 | 154 179 255 Slowest Speed 260 | 160 240 260 Overloaded Moves . | . . . Propulsion Burnouts . | . . . Robots Hopped . | . . . Potential Cave-ins . | . . . Cave-ins Triggered . | . . . Exploration Rate (%) 58 | 5 98 71 Regions Visited 2 Branch Regions 1 Pre-discovered Areas 1 | . . 1 Known Exits Taken . | . . . Unknown Exits Taken 2 | 1 1 . Scrap Searched . | . . . Spaces Dug 13 | . 13 . Terrain Destroyed 116 | . 20 96 Melee . | . . . Projectile 20 | . 20 . AOE 96 | . . 96 Terrain Rammed . | . . . Walls Destroyed . | . . . Machines Disabled . | . . . Actions | -11 -10 -10 --------- Run | Yrd Mat Sub Total 2791 | 119 1311 1361 Wait 355 | 4 189 162 Move 2189 | 85 1015 1089 Hop . | . . . Pick Up 34 | 5 21 8 Fast Attach 10 | 8 1 1 Attach 10 | . . 10 Detach 1 | 1 . . Swap 30 | . 16 14 Drop 17 | . 9 8 Fire 137 | 16 52 69 Melee . | . . . Ram . | . . . Kick . | . . . Crush 8 | . 8 . Escape Stasis . | . . . Rewire . | . . . Trap . | . . . Miscellaneous . | . . . Route ------- -11/Scrapyard -10/Materials (discovered 6 exits: [*Mat x3] / [*Min x2] / *Sub) -10/Subcaves (discovered 3 exits: [*Mat x2] / [*Rec]) History --------- Turn | Location | Event 11 | -11/Scrapyard | Discovered new exit (range 15) 203 | -11/Scrapyard | Entered Materials 283 | -10/Materials | Discovered new exit (range 6) 318 | -10/Materials | Build established: Mutant 434 | -10/Materials | Discovered new exit (range 16) 704 | -10/Materials | Discovered new exit (range 7) 862 | -10/Materials | Discovered new exit (range 3) 903 | -10/Materials | Derelicts attacked the area 1264 | -10/Materials | Discovered new exit (range 7) 1491 | -10/Materials | Central database locked down 2172 | -10/Materials | Discovered new exit (range 13) 2453 | -10/Materials | Entered Subcaves 2454 | -10/Subcaves | Approached by a straggling Scientist 2647 | -10/Subcaves | A swath of the cavern ceiling suddenly collapsed 2750 | -10/Subcaves | Discovered new exit (range 7) 2773 | -10/Subcaves | Visited Clippyterm 2780 | -10/Subcaves | Learned Research security intel 2780 | -10/Subcaves | Learned location of Extension (-5) 3215 | -10/Subcaves | Discovered new exit (range 16) 4253 | -10/Subcaves | Discovered new exit (range 16) 4466 | -10/Subcaves | Core integrity fell below 50% 4582 | -10/Subcaves | Shifting Twisted Machinery released Spk. Treads 4603 | -10/Subcaves | Shifting Twisted Machinery released Mak. Light Armor Plating 4709 | -10/Subcaves | Core integrity fell below 20% 4843 | -10/Subcaves | A Subdweller sparked back to life 4843 | -10/Subcaves | A Subdweller sparked back to life 4843 | -10/Subcaves | A Subdweller sparked back to life 4901 | -10/Subcaves | Found Prototype Device 4979 | -10/Subcaves | Shifting Twisted Machinery released Sub. Monowheel 5009 | -10/Subcaves | Shifting Twisted Machinery released Riot Gun 5647 | -10/Subcaves | Destroyed by AI-LQD(R) with Subdweller Machine Gun Last Messages --------------- 04921_ Acquired 33 matter. 04926_ Acquired Lgt. Ion Engine. 04943_ Acquired 50 matter. Sub. Monowheel falls loose from the Twisted Machinery. 04990_ Acquired 51 matter. 04994_ System corrupted: Matter fused (-5). Riot Gun falls loose from the Twisted Machinery. 05042_ Acquired 22 matter. 05121_ System corrupted: Energy discharge (-52). 05199_ DCOQ:NR5FHECJ>&0D=FW 1S 05368_ Acquired 50 matter. 05402_ Subatomizers dissect the Sub. Optics. 05421_ G4Y,3